bitfinex-derivatives/quotes_SOLF0:USTF0_20250110
["timestamp","ask_amount","ask_price","bid_price","bid_amount"]
[1736545732720,6.99498102,188.89,188.85,2.6476]
[1736545734620,9.64208102,188.89,188.85,2.6476]
[1736545735425,6.99498102,188.87,188.83,2.6479]
[1736545736525,6.99498102,188.85,188.81,2.6481]
[1736545737218,6.99498102,188.85,188.76,1.5206]
[1736545737424,6.99498102,188.83,188.79,2.6484]
[1736545738825,6.99498102,188.83,188.8,2.6484]
[1736545740523,6.99498102,188.83,188.76,6.99498102]
[1736545740726,6.99498102,188.81,188.78,2.6487]
[1736545748636,6.99498102,188.83,188.78,2.6487]
[1736545748839,9.64298102,188.83,188.78,2.6487]
[1736545750938,1.6175,188.86,188.8,2.6484]
[1736545751141,6.99498102,188.85,188.78,6.99498102]
[1736545751839,9.64278102,188.85,188.8,2.6484]
[1736545755943,2.6479,188.84,188.8,2.6484]
[1736545756540,6.99498102,188.83,188.8,2.6484]
[1736545757451,8.61248102,188.86,188.83,2.6479]
[1736545757641,1.6175,188.86,188.82,6.99498102]
[1736545757944,1.6175,188.86,188.84,2.6477]
[1736545766347,4.2651,188.86,188.73,6.51428405]
[1736545766643,6.99498102,188.85,188.78,6.99498102]
[1736545767048,9.64278102,188.85,188.8,2.6483]
[1736545767348,6.99498102,188.85,188.8,2.6483]
[1736545767550,6.99498102,188.83,188.8,2.6483]
[1736545770853,9.64308102,188.83,188.78,2.6485]
[1736545772053,9.64308102,188.83,188.79,2.6485]
[1736545774453,6.99498102,188.89,188.82,6.99498102]
[1736545774753,3.1972,188.9,188.84,6.99498102]
[1736545776051,2.6472,188.89,188.85,2.6477]
[1736545776451,3.1972,188.9,188.84,6.99498102]
[1736545777346,3.1972,188.9,188.86,2.6475]
[1736545777955,5.8442,188.9,188.86,2.6475]
[1736545778656,2.6474,188.88,188.82,2.6481]
[1736545778857,6.99498102,188.87,188.8,6.99498102]
[1736545780156,9.64238102,188.87,188.83,2.6479]
[1736545785755,2.6474,188.87,188.83,2.6479]
[1736545790066,6.99498102,188.88,188.8,6.99498102]
[1736545790262,6.99498102,188.84,188.74,1.5318]
[1736545790461,6.99498102,188.84,188.76,6.99498102]
[1736545790666,2.6483,188.81,188.76,2.6489]
[1736545793968,221.571,188.89,188.73,6.51428405]
[1736545794173,6.99498102,188.76,188.7,6.99498102]
[1736545795172,9.64408102,188.76,188.71,2.6496]
[1736545795372,1.514,188.81,188.74,6.99498102]
[1736545795574,1.514,188.81,188.77,6.99498102]
[1736545797077,4.1623,188.81,188.77,6.99498102]
[1736545799977,4.1623,188.81,188.76,2.6489]
[1736545801270,11.15728102,188.81,188.76,2.6489]
[1736545806277,4.1623,188.81,188.75,6.99498102]
[1736545806477,9.64308102,188.82,188.77,2.6488]
[1736545807676,6.99498102,188.82,188.75,6.99498102]
[1736545808281,9.64348102,188.8,188.76,2.6489]
[1736545809682,2.6486,188.79,188.75,2.6491]
[1736545809882,6.99498102,188.78,188.71,6.99498102]
[1736545810474,9.64378102,188.78,188.73,2.6493]
[1736545811187,9.64378102,188.78,188.71,6.99498102]
[1736545811388,2.6486,188.79,188.73,6.99498102]
[1736545812889,6.99498102,188.8,188.75,6.99498102]
[1736545813087,6.99498102,188.82,188.77,6.99498102]
[1736545813286,6.99498102,188.84,188.77,6.99498102]
[1736545814186,2.648,188.83,188.79,2.6485]
[1736545814375,2.648,188.83,188.77,6.99498102]
[1736545814376,3.1959,188.85,188.77,6.99498102]
[1736545814576,10.19088102,188.85,188.79,6.99498102]
[1736545814786,12.83868102,188.85,188.8,2.6483]
[1736545816804,9.64308102,188.83,188.78,2.6486]
[1736545816998,6.99498102,188.83,188.78,2.6486]
[1736545817500,6.99498102,188.81,188.75,6.99498102]
[1736545817711,6.99498102,188.81,188.76,2.6489]
[1736545818703,2.6484,188.8,188.76,2.6489]
[1736545818904,6.99498102,188.81,188.77,2.6487]
[1736545819105,6.99498102,188.83,188.75,6.99498102]
[1736545819306,2.6481,188.82,188.75,6.99498102]
[1736545819502,2.6481,188.82,188.77,2.6487]
[1736545821704,6.99498102,188.81,188.77,2.6487]
[1736545824298,3.1959,188.85,188.77,6.99498102]
[1736545824505,5.8436,188.85,188.8,2.6483]
[1736545827909,3.1959,188.85,188.79,6.99498102]
[1736545828204,11.30678102,188.87,188.81,6.99498102]
[1736545828810,11.30678102,188.87,188.82,2.6481]
[1736545832514,8.65928102,188.87,188.82,2.6481]
[1736545832714,2.6476,188.86,188.82,2.6481]
[1736545832910,8.65928102,188.87,188.82,2.6481]
[1736545833712,11.30678102,188.87,188.82,2.6481]
[1736545835811,2.6476,188.86,188.82,2.6481]
[1736545836011,6.99498102,188.85,188.79,6.99498102]
[1736545836213,2.648,188.84,188.77,6.99498102]
[1736545836817,2.648,188.84,188.79,2.6484]
[1736545837018,9.64298102,188.83,188.79,2.6484]
[1736545837220,6.99498102,188.83,188.76,2.6488]
[1736545837419,6.99498102,188.81,188.76,2.6488]
[1736545837621,6.99498102,188.79,188.73,6.99498102]
[1736545837919,6.99498102,188.79,188.74,2.6492]
[1736545838312,9.64358102,188.79,188.74,2.6492]
[1736545839020,2.649,188.76,188.7,54.24877321]
[1736545839220,6.99498102,188.75,188.67,6.99498102]
[1736545839620,1.6284,188.78,188.73,6.99498102]
[1736545841116,1.6284,188.78,188.74,2.6492]
[1736545842322,1.6284,188.78,188.73,9.64428102]
[1736545844328,6.99498102,188.77,188.71,9.64458102]
[1736545844526,6.99498102,188.77,188.71,6.99498102]
[1736545844724,6.99498102,188.75,188.69,13.36734097]
[1736545844925,2.6492,188.74,188.69,16.01724097]
[1736545848034,2.649,188.76,188.72,2.6495]
[1736545848222,2.649,188.76,188.71,6.99498102]
[1736545848729,2.649,188.76,188.71,9.64448102]
[1736545852534,2.6491,188.75,188.71,9.64448102]
[1736545852829,2.6491,188.75,188.71,2.6495]
[1736545853038,6.99498102,188.76,188.69,16.01714097]
[1736545853536,6.99498102,188.76,188.69,6.37235995]
[1736545853834,1.6607,188.77,188.67,6.99498102]
[1736545853835,6.99498102,188.74,188.67,6.99498102]
[1736545854034,6.99498102,188.72,188.65,6.99498102]
[1736545854636,2.6499,188.7,188.65,2.6505]
[1736545854828,9.64488102,188.7,188.65,2.6505]
[1736545855340,2.6501,188.68,188.63,2.6507]
[1736545856334,2.6501,188.68,188.64,2.6506]
[1736545858638,2.6501,188.68,188.63,2.6507]
[1736545859641,9.64508102,188.68,188.63,2.6507]
[1736545866552,6.99498102,188.68,188.63,2.6507]
[1736545866753,2.6503,188.67,188.63,2.6507]
[1736545867253,2.6505,188.65,188.6,2.6511]
[1736545868141,6.99498102,188.66,188.55,13.19393335]
[1736545868453,2.6508,188.63,188.58,2.6514]
[1736545868654,6.99498102,188.64,188.58,2.6514]
[1736545868847,1.5911,188.63,188.58,2.6514]
[1736545869048,9.64598102,188.62,188.57,2.6516]
[1736545869249,6.99498102,188.62,188.55,6.20793335]
[1736545869452,6.99498102,188.62,188.55,13.20291437]
[1736545869755,6.99498102,188.6,188.53,58.06552185]
[1736545870252,6.99498102,188.58,188.53,60.71752185]
[1736545870650,6.99498102,188.58,188.53,9.64698102]
[1736545871051,6.99498102,188.58,188.54,2.652]
[1736545871955,2.6511,188.61,188.56,2.6517]
[1736545872148,3.2256,188.62,188.55,6.99498102]
[1736545872853,3.2256,188.62,188.57,2.6515]
[1736545873549,6.99498102,188.59,188.54,2.6519]
[1736545874348,9.64638102,188.59,188.54,2.6519]
[1736545874646,9.64638102,188.59,188.55,2.6519]
[1736545875251,9.64638102,188.59,188.54,2.652]
[1736545877454,6.99498102,188.59,188.52,6.99498102]
[1736545877759,2.6515,188.58,188.53,2.6521]
[1736545878165,2.6513,188.6,188.54,6.99498102]
[1736545879165,2.6513,188.6,188.55,2.6518]
[1736545882162,6.99498102,188.61,188.55,2.6518]
[1736545882460,2.6513,188.59,188.55,2.6518]
[1736545883866,9.64628102,188.59,188.55,2.6518]
[1736545887263,6.99498102,188.59,188.46,5.38]
[1736545887463,2.6516,188.57,188.53,2.6521]
[1736545899775,3.2256,188.62,188.52,6.99498102]
[1736545899976,6.99498102,188.6,188.54,6.99498102]
[1736545901073,9.64628102,188.6,188.56,2.6517]
[1736545901780,9.64628102,188.6,188.57,2.6516]
[1736545904081,3.2256,188.62,188.56,6.99498102]
[1736545904275,1.5911,188.63,188.56,6.99498102]
[1736545904474,6.99498102,188.62,188.56,6.99498102]
[1736545906079,6.99498102,188.62,188.57,2.6516]
[1736545907084,2.6511,188.61,188.57,2.6516]
[1736545909282,6.99498102,188.58,188.54,2.652]
[1736545911191,9.64648102,188.58,188.54,2.652]
[1736545912688,6.99498102,188.58,188.54,2.652]
[1736545913989,9.64648102,188.58,188.54,2.652]
[1736545916790,6.99498102,188.58,188.54,2.652]
[1736545921388,9.64648102,188.58,188.54,2.652]
[1736545922989,2.6517,188.57,188.52,2.6523]
[1736545927291,6.99498102,188.56,188.49,2.6526]
[1736545927491,6.99498102,188.54,188.47,6.99498102]
[1736545928194,2.6523,188.53,188.48,2.6528]
[1736545928787,2.6524,188.52,188.47,2.653]
[1736545928990,2.6524,188.52,188.46,6.99498102]
[1736545928991,6.99498102,188.52,188.46,6.99498102]
[1736545930098,2.6526,188.51,188.46,9.64808102]
[1736545930796,2.6523,188.53,188.47,2.653]
[1736545930996,6.99498102,188.53,188.47,2.653]
[1736545931397,6.99498102,188.53,188.43,1.5259]
[1736545931398,6.99498102,188.49,188.32,87.40307657]
[1736545931594,6.99498102,188.45,188.37,6.99498102]
[1736545931994,5.38,188.52,188.39,6.99498102]
[1736545932196,6.99498102,188.52,188.45,6.99498102]
[1736545932400,1.6194,188.53,188.45,6.99498102]
[1736545932598,9.64728102,188.52,188.39,2.6541]
[1736545932795,1.6194,188.53,188.43,6.99498102]
[1736545933003,6.99498102,188.51,188.45,6.99498102]
[1736545933403,6.99498102,188.51,188.46,2.6531]
[1736545934996,6.99498102,188.51,188.47,2.653]
[1736545938305,9.64748102,188.51,188.47,2.653]
[1736545938608,6.99498102,188.51,188.48,2.6529]
[1736545938908,6.99498102,188.51,188.43,6.99498102]
[1736545939103,6.99498102,188.45,188.32,1.5983]
[1736545939305,6.99498102,188.43,188.36,6.99498102]
[1736545939506,9.64858102,188.43,188.36,6.99498102]
[1736545939902,6.99498102,188.43,188.36,6.99498102]
[1736545940211,6.99498102,188.43,188.39,2.6541]
[1736545942113,9.64888102,188.41,188.36,2.6545]
[1736545942306,9.64888102,188.41,188.35,6.99498102]
[1736545943209,9.64888102,188.41,188.35,9.64958102]
[1736545943711,6.99498102,188.43,188.38,2.6542]
[1736545944617,9.64858102,188.43,188.38,2.6542]
[1736545947218,2.6546,188.37,188.32,2.6551]
[1736545947419,6.99498102,188.36,188.3,6.99498102]
[1736545948416,9.64958102,188.36,188.31,2.6551]
[1736545948609,1.5517,188.41,188.34,6.99498102]
[1736545948814,1.5517,188.41,188.36,6.99498102]
[1736545949013,4.2056,188.41,188.36,6.99498102]
[1736545951214,4.2056,188.41,188.37,2.6544]
[1736545958531,2.6537,188.43,188.38,2.6542]
[1736545959230,2.6538,188.42,188.38,2.6542]
[1736545963830,1.5166,188.46,188.42,2.6536]
[1736545964137,1.5166,188.46,188.42,9.64858102]
[1736545964928,4.1699,188.46,188.42,9.64858102]
[1736545968034,1.5166,188.46,188.42,6.99498102]
[1736545968533,1.5166,188.46,188.43,2.6536]
[1736545977344,4.1698,188.46,188.43,2.6536]
[1736545978744,6.65554944,188.52,188.43,2.6536]
[1736545978944,2.6531,188.47,188.44,2.6534]
[1736545985746,2.6532,188.46,188.44,2.6534]
[1736545988151,2.6532,188.46,188.43,2.6535]
[1736545992354,2.6532,188.46,188.43,9.64848102]
[1736545993151,2.6532,188.46,188.43,2.6535]
[1736545997262,6.99498102,188.44,188.33,1.6012]
[1736545997562,6.99498102,188.4,188.34,6.99498102]
[1736545997762,2.6543,188.38,188.33,2.655]
[1736545997966,9.64928102,188.38,188.33,2.655]
[1736545998464,2.6545,188.37,188.32,9.65008102]
[1736545999468,2.6545,188.37,188.33,2.655]
[1736546002973,1.5581,188.41,188.36,6.99498102]
[1736546003870,1.5581,188.41,188.37,2.6544]
[1736546005069,9.64858102,188.44,188.38,6.99498102]
[1736546006065,9.64858102,188.44,188.39,2.6541]
[1736546011979,2.6536,188.43,188.39,2.6541]
[1736546014484,3.1223,188.45,188.4,6.99498102]
[1736546015380,5.7757,188.45,188.41,2.6537]
[1736546019583,12.77068102,188.45,188.41,2.6537]
[1736546020080,2.6536,188.44,188.4,2.654]
[1736546020275,6.99498102,188.43,188.32,5.38]
[1736546020485,6.99498102,188.43,188.36,6.99498102]
[1736546020782,9.64868102,188.43,188.38,2.6542]
[1736546022185,9.64868102,188.43,188.36,6.99498102]
[1736546022486,9.64868102,188.43,188.38,2.6542]
[1736546024286,9.64868102,188.43,188.39,2.6541]
[1736546025288,2.6542,188.39,188.34,2.6548]
[1736546025487,6.99498102,188.38,188.34,2.6548]
[1736546026389,9.64928102,188.38,188.34,2.6548]
[1736546029290,6.99498102,188.38,188.28,6.52701053]
[1736546029482,2.6548,188.35,188.3,2.6553]
[1736546032193,2.6548,188.35,188.3,2.62431347]
[1736546032694,2.6548,188.35,188.28,13.52199155]
[1736546032990,2.6548,188.35,188.31,2.6553]
[1736546035488,2.6549,188.34,188.3,9.65038102]
[1736546035693,6.99498102,188.36,188.3,9.65038102]
[1736546036298,9.64968102,188.36,188.3,9.65038102]
[1736546036696,2.6547,188.36,188.3,9.65038102]
[1736546036995,9.64968102,188.36,188.31,2.6552]
[1736546039797,2.6547,188.35,188.31,2.6552]
[1736546044106,8.3268018,188.39,188.35,2.6547]
[1736546044311,1.6532,188.39,188.32,6.99498102]
[1736546044606,1.6532,188.39,188.34,6.99498102]
[1736546045107,1.6532,188.39,188.36,2.6545]
[1736546046303,4.3074,188.39,188.36,2.6545]
[1736546047206,6.99498102,188.38,188.36,2.6545]
[1736546048705,6.99498102,188.38,188.32,6.99498102]
[1736546049001,6.99498102,188.38,188.31,6.99498102]
[1736546049500,9.64958102,188.36,188.33,2.655]
[1736546050408,6.99498102,188.36,188.31,6.99498102]
[1736546050609,2.6549,188.34,188.31,2.6552]
[1736546052413,9.65018102,188.32,188.27,2.6558]
[1736546057613,6.99498102,188.3,188.26,2.656]
[1736546062616,2.6554,188.31,188.27,2.6558]
[1736546062915,1.6076,188.34,188.27,6.99498102]
[1736546063108,1.6076,188.34,188.3,2.6553]
[1736546063909,4.2625,188.34,188.3,2.6553]
[1736546065523,4.2625,188.34,188.27,6.99498102]
[1736546066216,4.2625,188.34,188.3,2.6553]
[1736546066616,6.99498102,188.33,188.3,2.6553]
[1736546070520,9.64998102,188.33,188.3,2.6553]
[1736546070719,9.64998102,188.33,188.29,2.6555]
[1736546070919,6.99498102,188.31,188.25,35.54131988]
[1736546071424,6.99498102,188.31,188.26,2.656]
[1736546072126,1.6076,188.34,188.26,6.99498102]
[1736546072328,6.99498102,188.33,188.28,2.6556]
[1736546073232,2.6551,188.32,188.28,2.6556]
[1736546074333,2.6553,188.31,188.28,2.6556]
[1736546075628,2.6553,188.31,188.26,6.99498102]
[1736546075832,9.65028102,188.31,188.27,2.6558]
[1736546076427,2.6554,188.3,188.27,2.6558]
[1736546076629,6.99498102,188.31,188.25,35.54131988]
[1736546076832,6.99498102,188.31,188.25,38.19731988]
[1736546078133,2.6556,188.29,188.25,38.19731988]
[1736546079234,9.65058102,188.29,188.25,2.656]
[1736546080336,6.99498102,188.29,188.22,6.99498102]
[1736546080835,2.6559,188.27,188.23,2.6564]
[1736546081835,2.6559,188.27,188.22,6.99498102]
[1736546081836,2.656,188.26,188.22,2.6565]
[1736546084146,9.65138102,188.23,188.18,2.657]
[1736546084438,9.65138102,188.23,188.16,6.99498102]
[1736546085237,9.65138102,188.23,188.12,5.38]
[1736546085434,9.65138102,188.23,188.16,6.99498102]
[1736546086234,9.65138102,188.23,188.19,2.6569]
[1736546086433,1.5421,188.28,188.22,6.99498102]
[1736546086640,1.5421,188.28,188.24,2.6563]
[1736546088841,4.1978,188.28,188.24,2.6563]
[1736546089142,6.99498102,188.26,188.21,2.6567]
[1736546090044,9.65108102,188.26,188.21,2.6567]
[1736546093445,6.99498102,188.24,188.21,2.6567]
[1736546095039,6.99498102,188.24,188.19,2.657]
[1736546095040,6.99498102,188.22,188.19,2.657]
[1736546100245,6.99498102,188.22,188.2,2.6568]
[1736546100445,1.5421,188.28,188.19,6.99498102]
[1736546100446,2.6561,188.26,188.19,6.99498102]
[1736546100746,6.99498102,188.25,188.21,2.6567]
[1736546101841,9.65108102,188.25,188.21,2.6567]
[1736546102146,6.99498102,188.23,188.21,2.6567]
[1736546103247,6.99498102,188.23,188.18,2.657]
[1736546103445,6.99498102,188.23,188.17,6.99498102]
[1736546103949,6.99498102,188.21,188.17,2.6572]
[1736546105252,6.99498102,188.19,188.14,2.6576]
[1736546105550,6.99498102,188.17,188.14,2.6576]
[1736546105952,6.99498102,188.17,188.08,41.35567446]
[1736546105953,6.99498102,188.17,188.09,6.99498102]
[1736546107242,6.99498102,188.17,188.13,2.6577]
[1736546108953,2.6575,188.16,188.11,2.658]
[1736546109355,6.99498102,188.15,188.11,2.658]
[1736546112154,6.99498102,188.15,188.08,34.38027446]
[1736546112354,2.6577,188.14,188.09,2.6583]
[1736546112754,6.99498102,188.13,188.09,2.6583]
[1736546115762,9.65278102,188.13,188.09,2.6583]
[1736546115956,9.65278102,188.13,188.08,2.6585]
[1736546116661,3.2766,188.15,188.02,1.565]
[1736546116662,6.99498102,188.11,188.06,2.6587]
[1736546116963,6.99498102,188.11,188.03,6.99498102]
[1736546117165,6.99498102,188.09,188.05,2.6589]
[1736546117758,6.99498102,188.09,188.01,9.39989135]
[1736546117960,9.65338102,188.09,188.04,2.6591]
[1736546118158,6.99498102,188.07,188.01,9.39989135]
[1736546118356,6.99498102,188.05,187.98,6.99498102]
[1736546118759,6.99498102,188.09,188.02,6.99498102]
[1736546118964,6.99498102,188.09,188.05,2.6588]
[1736546119456,6.99498102,188.11,188.04,6.99498102]
[1736546119665,6.99498102,188.13,188.06,6.99498102]
[1736546119865,2.6577,188.14,188.06,6.99498102]
[1736546120156,6.99498102,188.13,188.06,6.99498102]
[1736546120562,2.6577,188.14,188.06,6.99498102]
[1736546120763,6.99498102,188.13,188.06,6.99498102]
[1736546121062,6.99498102,188.13,188.09,2.6584]
[1736546123369,6.99498102,188.13,188.1,2.6582]
[1736546123564,10.27158102,188.15,188.08,6.99498102]
[1736546123865,10.27158102,188.15,188.1,2.6582]
[1736546124566,3.2766,188.15,188.1,2.6582]
[1736546124865,6.99498102,188.14,188.11,2.658]
[1736546125167,6.99498102,188.14,188.08,6.99498102]
[1736546125369,6.99498102,188.14,188.1,2.6582]
[1736546126471,9.65268102,188.14,188.1,2.6582]
[1736546130368,6.99498102,188.12,188.1,2.6582]
[1736546130970,2.6581,188.11,188.07,2.6585]
[1736546131270,6.99498102,188.1,188.07,2.6585]
[1736546134570,9.65328102,188.1,188.05,2.6588]
[1736546136068,6.99498102,188.1,188.03,6.99498102]
[1736546136370,6.99498102,188.11,188.03,6.99498102]
[1736546137268,6.99498102,188.11,188.07,2.6586]
[1736546139072,9.65308102,188.11,188.07,2.6586]
[1736546139472,9.65308102,188.11,188.03,6.99498102]
[1736546139473,9.65308102,188.11,188.05,2.6588]
[1736546141570,6.99498102,188.09,188.05,2.6588]
[1736546143875,6.99498102,188.09,188.03,6.99498102]
[1736546144074,6.99498102,188.09,188.06,2.6588]
[1736546144775,6.99498102,188.07,188.0,6.99498102]
[1736546146176,6.99498102,188.07,188.04,2.659]
[1736546146680,6.99498102,188.07,187.98,5.38]
[1736546146879,6.99498102,188.07,188.05,2.6589]
[1736546151885,6.99498102,188.07,188.02,2.6593]
[1736546152084,6.99498102,188.07,188.01,6.99498102]
[1736546152784,6.99498102,188.07,188.04,2.6591]
[1736546153480,6.99498102,188.07,187.98,5.38]
[1736546153481,9.65368102,188.07,188.03,2.6592]
[1736546155385,2.6589,188.06,188.01,2.6595]
[1736546155889,6.99498102,188.05,188.01,2.6595]
[1736546159593,6.99498102,188.05,187.99,6.99498102]
[1736546159786,9.65358102,188.08,188.04,2.6591]
[1736546159991,9.65358102,188.08,188.01,6.99498102]
[1736546160192,6.99498102,188.04,187.98,6.99498102]
[1736546160490,6.99498102,188.04,188.0,2.6596]
[1736546165091,6.99498102,188.04,188.01,2.6595]
[1736546178397,2.6586,188.08,188.03,2.6591]
[1736546178599,6.99498102,188.06,188.03,2.6591]
[1736546180504,6.99498102,188.06,188.04,2.6591]
[1736546185508,6.99498102,188.06,188.05,2.659]
[1736546188709,6.99498102,188.06,188.0,6.99498102]
[1736546188903,6.99498102,188.06,188.04,2.6591]
[1736546194512,6.99498102,188.06,188.03,2.6592]
[1736546195717,3.1712,188.09,188.05,2.659]
[1736546196015,10.16618102,188.09,188.02,6.99498102]
[1736546197315,12.82458102,188.09,188.04,2.6591]
[1736546203519,9.65378102,188.07,188.02,2.6593]
[1736546203814,3.1712,188.09,187.99,6.99498102]
[1736546204012,6.99498102,188.05,188.02,2.6594]
[1736546204815,6.99498102,188.07,188.02,2.6594]
[1736546205119,9.65368102,188.07,188.02,2.6594]
[1736546206319,6.99498102,188.05,188.02,2.6594]
[1736546209322,6.99498102,188.05,187.99,6.99498102]
[1736546209521,9.65398102,188.05,188.0,2.6595]
[1736546211225,2.6591,188.04,188.0,2.6595]
[1736546212913,6.99498102,188.05,187.98,6.99498102]
[1736546213119,9.65398102,188.05,188.01,2.6595]
[1736546215823,6.99498102,188.05,188.01,2.6595]
[1736546216926,9.65398102,188.05,188.01,2.6595]
[1736546218024,6.99498102,188.05,188.01,2.6595]
[1736546219927,3.1712,188.09,188.03,2.6592]
[1736546220123,9.87100533,188.09,188.02,6.99498102]
[1736546220323,16.86598635,188.09,188.02,6.99498102]
[1736546221131,6.99498102,188.07,188.02,6.99498102]
[1736546222229,6.99498102,188.07,188.01,6.99498102]
[1736546223128,6.99498102,188.07,188.03,2.6591]
[1736546223428,6.99498102,188.07,188.01,6.99498102]
[1736546224224,6.99498102,188.07,188.04,2.6591]
[1736546225533,6.99498102,188.07,188.01,6.99498102]
[1736546225730,6.99498102,188.07,188.02,2.6593]
[1736546226335,6.99498102,188.07,187.94,11.48004195]
[1736546226536,9.65378102,188.07,188.01,2.6595]
[1736546228537,6.99498102,188.05,188.01,2.6595]
[1736546229035,6.99498102,188.05,188.0,2.6596]
[1736546229240,1.5919,188.04,188.0,2.6596]
[1736546230947,6.99498102,188.03,188.0,2.6596]
[1736546235048,6.99498102,188.03,188.01,2.6595]
[1736546236249,8.58688102,188.04,188.01,2.6595]
[1736546236442,6.99498102,188.02,187.96,2.6602]
[1736546236636,2.6593,188.03,187.94,6.10004195]
[1736546236637,6.99498102,188.0,187.94,6.10004195]
[1736546236940,6.99498102,187.99,187.94,6.10004195]
[1736546237148,6.99498102,187.99,187.94,8.76044195]
[1736546237848,6.99498102,187.99,187.94,2.6604]
[1736546238340,9.65478102,187.99,187.94,2.6604]
[1736546239247,6.99498102,187.99,187.94,2.6604]
[1736546241450,6.99498102,187.99,187.93,6.99498102]
[1736546241748,1.6269,188.02,187.95,6.99498102]
[1736546242346,1.6269,188.02,187.99,2.6597]
[1736546242745,1.5847,188.03,187.99,6.99498102]
[1736546242953,1.5919,188.04,187.99,6.99498102]
[1736546243349,1.5919,188.04,188.0,2.6596]
[1736546243552,1.5919,188.04,187.99,6.99498102]
[1736546244850,8.58688102,188.04,188.01,2.6594]
[1736546246858,8.58688102,188.04,188.0,2.6596]
[1736546251067,6.99498102,188.02,187.98,2.6598]
[1736546255455,1.6433,188.03,187.99,2.6598]
[1736546256258,6.99498102,188.02,187.98,2.6599]
[1736546256564,6.99498102,188.02,187.94,6.99498102]
[1736546256763,6.99498102,188.0,187.94,6.99498102]
[1736546257566,6.99498102,188.0,187.96,2.6601]
[1736546259467,9.65468102,188.0,187.88,39.69351347]
[1736546259766,9.65468102,188.0,187.92,6.99498102]
[1736546261164,9.65468102,188.0,187.95,2.6604]
[1736546265267,6.99498102,188.0,187.96,2.6602]
[1736546265467,6.99498102,188.0,187.94,6.99498102]
[1736546266368,6.99498102,188.0,187.95,2.6603]
[1736546266563,6.99498102,188.0,187.94,6.99498102]
[1736546267367,6.99498102,188.0,187.96,2.6601]
[1736546274972,6.99498102,188.0,187.93,6.99498102]
[1736546275273,6.99498102,188.0,187.97,2.6601]
[1736546279471,6.99498102,188.0,187.96,2.6602]
[1736546279676,6.99498102,188.0,187.88,39.69351347]
[1736546279975,6.99498102,188.0,187.92,6.99498102]
[1736546280178,6.99498102,188.0,187.97,2.6601]
[1736546280973,6.99498102,188.0,187.92,6.99498102]
[1736546281181,6.99498102,187.98,187.88,34.31351347]
[1736546281367,6.99498102,187.98,187.9,6.99498102]
[1736546281672,6.99498102,187.98,187.94,2.6604]
[1736546282279,6.99498102,187.98,187.95,2.6604]
[1736546282872,6.99498102,187.98,187.86,7.0366]
[1736546282873,6.99498102,187.96,187.86,1.6566]
[1736546283179,1.6177,187.97,187.87,6.99498102]
[1736546283379,6.99498102,187.96,187.91,2.6608]
[1736546284175,2.6604,187.96,187.9,2.661]
[1736546284379,6.99498102,187.94,187.87,6.99498102]
[1736546286185,9.65558102,187.94,187.89,2.6611]
[1736546286381,9.65558102,187.94,187.87,6.99498102]
[1736546286683,6.99498102,187.9,187.81,1.5539]
[1736546286883,6.99498102,187.9,187.86,2.6616]
[1736546291787,6.99498102,187.9,187.84,6.99498102]
[1736546291989,8.60568102,187.95,187.88,6.99498102]
[1736546293093,8.60568102,187.95,187.91,2.6608]
[1736546295895,2.6605,187.94,187.81,1.5539]
[1736546296094,6.99498102,187.93,187.87,6.99498102]
[1736546296295,2.6605,187.94,187.87,6.99498102]
[1736546296798,1.6107,187.95,187.89,6.99498102]
[1736546297196,1.6107,187.95,187.91,2.6608]
[1736546300698,1.6107,187.95,187.92,2.6608]
[1736546301597,6.99498102,187.94,187.92,2.6608]
[1736546304494,1.5197,187.96,187.89,6.99498102]
[1736546306102,1.5197,187.96,187.93,2.6606]
[1736546308899,4.2778,187.97,187.89,6.99498102]
[1736546309100,1.5135,188.01,187.93,6.99498102]
[1736546309301,8.50848102,188.01,187.93,6.99498102]
[1736546309801,11.16818102,188.01,187.95,2.6603]
[1736546310103,11.16818102,188.01,187.93,6.99498102]
[1736546310402,11.16818102,188.01,187.96,2.6601]
[1736546310899,6.99498102,187.99,187.87,1.6494]
[1736546311203,9.65508102,187.97,187.93,2.6606]
[1736546312502,6.99498102,187.95,187.87,1.6494]
[1736546312699,6.99498102,187.95,187.88,6.99498102]
[1736546314103,6.99498102,187.95,187.91,2.6609]
[1736546327813,6.99498102,187.95,187.92,2.6608]